[Event "Pervenstvo PFO 2023_Y19_Rapid"]
[Site "Samara region, Russia"]
[Date "2023.11.11"]
[Round "7.5"]
[White "Pukhov, Ivan"]
[Black "Berezin, Zachar"]
[Result "1-0"]
[TimeControl "10:5"]
[WhiteFideId "34301895"]
[BlackFideId "44139322"]
[WhiteElo "1955"]
[BlackElo "1658"]

1. Nf3 {[%clk 00:10:09]} {[%emt 00:06:15]} Nf6 {[%clk 00:10:02]} {[%emt
00:00:09]} 2. g3 {[%clk 00:10:13]} b5 {[%clk 00:10:06]} {[%emt 00:00:01]} 3.
Bg2 {[%clk 00:10:02]} {[%emt 00:00:16]} Bb7 {[%clk 00:10:11]} 4. O-O {[%clk
00:10:03]} {[%emt 00:00:04]} e6 {[%clk 00:10:15]} {[%emt 00:00:01]} 5. d3
{[%clk 00:09:13]} {[%emt 00:00:56]} Be7 {[%clk 00:10:18]} {[%emt 00:00:02]} 6.
e4 {[%clk 00:09:07]} {[%emt 00:00:10]} d6 {[%clk 00:10:22]} {[%emt 00:00:01]} 7.
Nd4 {[%clk 00:08:36]} {[%emt 00:00:36]} a6 {[%clk 00:10:09]} {[%emt 00:00:18]}
8. e5 {[%clk 00:08:00]} {[%emt 00:00:41]} Bxg2 {[%clk 00:10:07]} {[%emt
00:00:07]} 9. exf6 {[%clk 00:07:59]} {[%emt 00:00:06]} Bxf6 {[%clk 00:10:04]}
{[%emt 00:00:08]} 10. Nxe6 {[%clk 00:07:59]} {[%emt 00:00:05]} fxe6 {[%clk
00:10:02]} {[%emt 00:00:06]} 11. Kxg2 {[%clk 00:08:03]} {[%emt 00:00:02]} O-O
{[%clk 00:10:02]} {[%emt 00:00:05]} 12. c3 {[%clk 00:07:39]} {[%emt 00:00:29]}
Nc6 {[%clk 00:09:10]} {[%emt 00:00:58]} 13. Nd2 {[%clk 00:06:45]} {[%emt
00:00:59]} d5 {[%clk 00:08:25]} {[%emt 00:00:49]} 14. Qg4 {[%clk 00:06:04]}
{[%emt 00:00:44]} Qd6 {[%clk 00:08:20]} {[%emt 00:00:12]} 15. Nf3 {[%clk
00:05:40]} {[%emt 00:00:29]} e5 {[%clk 00:07:59]} {[%emt 00:00:26]} 16. Bg5
{[%clk 00:05:10]} {[%emt 00:00:33]} Rae8 {[%clk 00:07:07]} {[%emt 00:01:00]} 17.
Rae1 {[%clk 00:05:06]} {[%emt 00:00:08]} Bxg5 {[%clk 00:07:03]} {[%emt
00:00:09]} 18. Qxg5 {[%clk 00:04:07]} {[%emt 00:01:04]} e4 {[%clk 00:06:40]}
{[%emt 00:00:28]} 19. dxe4 {[%clk 00:03:54]} {[%emt 00:00:18]} dxe4 {[%clk
00:06:44]} {[%emt 00:00:02]} 20. Ng1 {[%clk 00:02:23]} {[%emt 00:01:33]} Re5
{[%clk 00:06:17]} {[%emt 00:00:35]} 21. Qe3 {[%clk 00:02:04]} {[%emt 00:00:24]}
Ne7 {[%clk 00:05:19]} {[%emt 00:01:02]} 22. Qd4 {[%clk 00:01:24]} {[%emt
00:00:44]} Qe6 {[%clk 00:05:07]} {[%emt 00:00:18]} 23. f4 {[%clk 00:00:50]}
{[%emt 00:00:39]} exf3+ {[%clk 00:04:10]} {[%emt 00:01:02]} 24. Nxf3 {[%clk
00:00:54]} {[%emt 00:00:01]} Re2+ {[%clk 00:03:28]} {[%emt 00:00:48]} 25. Rxe2
{[%clk 00:00:58]} {[%emt 00:00:01]} Qxe2+ {[%clk 00:03:31]} 26. Rf2 {[%clk
00:01:01]} {[%emt 00:00:01]} Qe6 {[%clk 00:03:16]} {[%emt 00:00:20]} 27. Qe5
{[%clk 00:00:42]} {[%emt 00:00:25]} Qd7 {[%clk 00:00:55]} {[%emt 00:02:26]} 28.
Re2 {[%clk 00:00:35]} {[%emt 00:00:11]} Qd3 {[%clk 00:00:17]} {[%emt 00:00:43]}
29. Qe4 {[%clk 00:00:19]} {[%emt 00:00:21]} Qxe4 {[%clk 00:00:15]} {[%emt
00:00:07]} 30. Rxe4 {[%clk 00:00:24]} {[%emt 00:00:01]} Nd5 {[%clk 00:00:19]}
31. a4 {[%clk 00:00:11]} {[%emt 00:00:18]} Rd8 {[%clk 00:00:13]} {[%emt
00:00:10]} 32. axb5 {[%clk 00:00:13]} {[%emt 00:00:03]} axb5 {[%clk 00:00:18]}
33. Nd4 {[%clk 00:00:13]} {[%emt 00:00:04]} b4 {[%clk 00:00:17]} {[%emt
00:00:06]} 34. Nc6 {[%clk 00:00:11]} {[%emt 00:00:06]} Rd6 {[%clk 00:00:07]}
{[%emt 00:00:15]} 35. Nxb4 {[%clk 00:00:12]} {[%emt 00:00:06]} Nxb4 {[%clk
00:00:10]} {[%emt 00:00:01]} 36. Rxb4 {[%clk 00:00:16]} {[%emt 00:00:02]} Kf7
{[%clk 00:00:11]} {[%emt 00:00:04]} 37. Rb7 {[%clk 00:00:17]} {[%emt 00:00:03]}
Rd7 {[%clk 00:00:12]} {[%emt 00:00:04]} 38. Kf3 {[%clk 00:00:20]} {[%emt
00:00:02]} Ke6 {[%clk 00:00:16]} 39. Ke3 {[%clk 00:00:18]} {[%emt 00:00:07]}
Kd6 {[%clk 00:00:19]} {[%emt 00:00:02]} 40. Rb4 {[%clk 00:00:21]} {[%emt
00:00:02]} c5 {[%clk 00:00:22]} {[%emt 00:00:02]} 41. Rh4 {[%clk 00:00:23]}
{[%emt 00:00:02]} h6 {[%clk 00:00:24]} {[%emt 00:00:03]} 42. Rf4 {[%clk
00:00:15]} {[%emt 00:00:13]} Rb7 {[%emt 00:00:04]} 43. Rf2 Re7+ {[%clk
00:00:29]} {[%emt 00:00:02]} 44. Kd3 {[%clk 00:00:23]} {[%emt 00:00:01]} Kd5
{[%clk 00:00:28]} {[%emt 00:00:06]} 45. Rf5+ {[%clk 00:00:25]} {[%emt
00:00:03]} Kd6 {[%clk 00:00:32]} 46. b3 {[%clk 00:00:14]} {[%emt 00:00:16]} Rb7
{[%clk 00:00:33]} {[%emt 00:00:04]} 47. Kc4 {[%clk 00:00:16]} {[%emt 00:00:03]}
Rc7 {[%clk 00:00:35]} {[%emt 00:00:04]} 48. Rd5+ {[%clk 00:00:20]} Ke6 {[%clk
00:00:35]} {[%emt 00:00:05]} 49. Rxc5 {[%clk 00:00:24]} {[%emt 00:00:02]} Ra7
{[%clk 00:00:38]} {[%emt 00:00:02]} 50. h4 {[%clk 00:00:14]} {[%emt 00:00:15]}
Rf7 {[%clk 00:00:31]} {[%emt 00:00:12]} 51. b4 {[%clk 00:00:12]} {[%emt
00:00:08]} Rf3 {[%clk 00:00:32]} {[%emt 00:00:03]} 52. b5 {[%clk 00:00:14]}
{[%emt 00:00:03]} Rxg3 {[%clk 00:00:30]} {[%emt 00:00:07]} 53. h5 {[%clk
00:00:09]} {[%emt 00:00:10]} Rg4+ {[%clk 00:00:14]} {[%emt 00:00:22]} 54. Kb3
{[%clk 00:00:11]} {[%emt 00:00:02]} Kd6 {[%clk 00:00:18]} 55. Rc6+ {[%clk
00:00:07]} {[%emt 00:00:11]} Kd7 {[%clk 00:00:22]} 56. Ra6 {[%clk 00:00:10]}
{[%emt 00:00:02]} Rg5 {[%clk 00:00:24]} {[%emt 00:00:03]} 57. c4 {[%clk
00:00:13]} {[%emt 00:00:02]} Rxh5 {[%clk 00:00:08]} {[%emt 00:00:21]} 58. Ra7+
{[%clk 00:00:18]} Kd6 {[%clk 00:00:12]} 59. Rxg7 {[%clk 00:00:19]} {[%emt
00:00:03]} Kc5 {[%clk 00:00:14]} {[%emt 00:00:03]} 60. Rc7+ {[%clk 00:00:23]}
{[%emt 00:00:01]} Kb6 {[%clk 00:00:19]} 61. Rc6+ {[%clk 00:00:26]} Kb7 {[%clk
00:00:23]} 62. Kb4 {[%clk 00:00:29]} {[%emt 00:00:02]} Rh1 {[%clk 00:00:25]}
{[%emt 00:00:03]} 63. Rg6 {[%clk 00:00:31]} {[%emt 00:00:03]} Rh4 {[%clk
00:00:23]} {[%emt 00:00:07]} 64. Rg7+ {[%clk 00:00:13]} {[%emt 00:00:24]} Kb8
{[%clk 00:00:21]} {[%emt 00:00:08]} 65. Kc5 {[%clk 00:00:14]} {[%emt 00:00:04]}
Rh5+ {[%clk 00:00:15]} {[%emt 00:00:10]} 66. Kb6 {[%clk 00:00:18]} {[%emt
00:00:02]} Kc8 {[%clk 00:00:08]} {[%emt 00:00:12]} 67. c5 {[%clk 00:00:20]}
{[%emt 00:00:03]} Rg5 {[%clk 00:00:10]} {[%emt 00:00:03]} 68. Rh7 {[%clk
00:00:21]} {[%emt 00:00:04]} h5 {[%clk 00:00:07]} {[%emt 00:00:08]} 69. c6
{[%clk 00:00:25]} Rg8 {[%emt 00:00:03]} 70. Rxh5 {[%emt 00:00:02]} Rf8 {[%clk
00:00:10]} {[%emt 00:00:02]} 71. Rh7 {[%clk 00:00:24]} {[%emt 00:00:11]} Kb8
{[%emt 00:00:08]} 72. Ka6 {[%clk 00:00:23]} {[%emt 00:00:05]} Rc8 {[%clk
00:00:10]} {[%emt 00:00:03]} 73. b6 {[%clk 00:00:20]} {[%emt 00:00:08]} Rxc6
{[%clk 00:00:07]} {[%emt 00:00:08]} 74. Rh8+ {[%clk 00:00:25]} Rc8 {[%clk
00:00:11]} {[%emt 00:00:02]} 75. Rxc8+ {[%clk 00:00:28]} Kxc8 {[%clk 00:00:15]}
76. Ka7 {[%clk 00:00:33]} 1-0

[Event "Pervenstvo PFO 2023_Y19_Rapid"]
[Site "Samara region, Russia"]
[Date "2023.11.11"]
[Round "7.6"]
[White "Babkov, Timofey"]
[Black "Gimazetdinov, Amir"]
[Result "1/2-1/2"]
[TimeControl "10:5"]
[WhiteFideId "54135931"]
[BlackFideId "54142440"]
[WhiteElo "1855"]
[BlackElo "1749"]

1. e4 {[%clk 00:10:07]} {[%emt 00:00:02]} c5 {[%clk 00:10:10]} 2. Nf3 {[%clk
00:10:11]} d6 {[%clk 00:10:14]} 3. d4 {[%clk 00:10:15]} cxd4 {[%clk 00:10:17]}
{[%emt 00:00:01]} 4. Nxd4 {[%clk 00:10:20]} Nf6 {[%clk 00:10:21]} {[%emt
00:00:01]} 5. Nc3 {[%clk 00:10:23]} {[%emt 00:00:02]} a6 {[%clk 00:10:25]} 6.
h3 {[%clk 00:10:27]} {[%emt 00:00:02]} e6 {[%clk 00:10:23]} {[%emt 00:00:06]} 7.
g4 {[%clk 00:10:29]} {[%emt 00:00:03]} b5 {[%clk 00:10:25]} {[%emt 00:00:03]} 8.
Bg2 {[%clk 00:10:32]} {[%emt 00:00:01]} Bb7 {[%clk 00:10:29]} 9. g5 {[%clk
00:10:20]} {[%emt 00:00:18]} Nfd7 {[%clk 00:10:28]} {[%emt 00:00:06]} 10. Be3
{[%clk 00:10:21]} {[%emt 00:00:03]} Be7 {[%clk 00:10:23]} {[%emt 00:00:11]} 11.
Qd2 {[%clk 00:10:15]} {[%emt 00:00:11]} Nc5 {[%clk 00:10:26]} {[%emt 00:00:02]}
12. a3 {[%clk 00:10:00]} {[%emt 00:00:20]} Nbd7 {[%clk 00:10:28]} {[%emt
00:00:03]} 13. O-O-O {[%clk 00:09:52]} {[%emt 00:00:13]} Nb6 {[%clk 00:10:32]}
14. f4 {[%clk 00:09:42]} {[%emt 00:00:15]} Nc4 {[%clk 00:10:26]} {[%emt
00:00:11]} 15. Qf2 {[%clk 00:09:45]} Nxe3 {[%clk 00:10:14]} {[%emt 00:00:17]}
16. Qxe3 {[%clk 00:09:49]} {[%emt 00:00:02]} Qc7 {[%clk 00:10:04]} {[%emt
00:00:15]} 17. h4 {[%clk 00:09:36]} {[%emt 00:00:18]} O-O-O {[%clk 00:10:04]}
{[%emt 00:00:03]} 18. f5 {[%clk 00:09:20]} {[%emt 00:00:22]} Kb8 {[%clk
00:10:03]} {[%emt 00:00:07]} 19. fxe6 {[%clk 00:07:02]} {[%emt 00:02:23]} fxe6
{[%clk 00:10:06]} {[%emt 00:00:01]} 20. Bh3 {[%clk 00:05:54]} {[%emt 00:01:12]}
e5 {[%clk 00:09:54]} {[%emt 00:00:18]} 21. Ne6 {[%clk 00:05:34]} {[%emt
00:00:25]} Nxe6 {[%clk 00:09:57]} {[%emt 00:00:02]} 22. Bxe6 {[%clk 00:05:38]}
{[%emt 00:00:01]} Qc5 {[%clk 00:08:36]} {[%emt 00:01:27]} 23. Qxc5 {[%clk
00:05:21]} {[%emt 00:00:22]} dxc5 {[%clk 00:08:39]} {[%emt 00:00:02]} 24. Rxd8+
{[%clk 00:05:24]} {[%emt 00:00:01]} Rxd8 {[%clk 00:08:43]} 25. Rf1 {[%clk
00:05:07]} {[%emt 00:00:22]} Rf8 {[%clk 00:08:45]} {[%emt 00:00:03]} 26. Rxf8+
Bxf8 27. Nd5 1/2-1/2

[Event "Pervenstvo PFO 2023_Y19_Rapid"]
[Site "Samara region, Russia"]
[Date "2023.11.11"]
[Round "7.7"]
[White "Ermakov, Maxim"]
[Black "Siyalov, Mikhail"]
[Result "1-0"]
[TimeControl "10:5"]
[WhiteFideId "54174996"]
[BlackFideId "24276359"]
[WhiteElo "1766"]
[BlackElo "1691"]

1. d4 {[%clk 00:10:09]} Nf6 {[%clk 00:10:09]} {[%emt 00:00:02]} 2. Bg5 {[%clk
00:10:13]} d6 {[%clk 00:10:10]} {[%emt 00:00:04]} 3. Bxf6 {[%clk 00:10:16]}
{[%emt 00:00:02]} exf6 {[%clk 00:10:13]} {[%emt 00:00:01]} 4. c4 {[%clk
00:10:20]} {[%emt 00:00:02]} Be7 {[%clk 00:10:12]} {[%emt 00:00:06]} 5. e3
{[%clk 00:10:24]} {[%emt 00:00:01]} f5 {[%clk 00:10:16]} 6. Nc3 {[%clk
00:10:25]} {[%emt 00:00:04]} c6 {[%clk 00:10:19]} {[%emt 00:00:02]} 7. g3
{[%clk 00:10:29]} {[%emt 00:00:02]} O-O {[%clk 00:10:09]} {[%emt 00:00:15]} 8.
Bg2 {[%clk 00:10:33]} {[%emt 00:00:01]} Bf6 {[%clk 00:10:00]} {[%emt 00:00:14]}
9. Nge2 {[%clk 00:10:36]} {[%emt 00:00:02]} Na6 {[%clk 00:09:54]} {[%emt
00:00:11]} 10. O-O {[%clk 00:10:38]} {[%emt 00:00:03]} g6 {[%clk 00:09:39]}
{[%emt 00:00:20]} 11. a3 {[%clk 00:10:38]} {[%emt 00:00:05]} c5 {[%clk
00:08:38]} {[%emt 00:01:06]} 12. dxc5 {[%clk 00:10:13]} {[%emt 00:00:30]} dxc5
{[%clk 00:08:14]} {[%emt 00:00:30]} 13. Qc2 {[%clk 00:10:17]} Nc7 {[%clk
00:07:32]} {[%emt 00:00:47]} 14. Nf4 {[%clk 00:10:07]} {[%emt 00:00:14]} Be6
{[%clk 00:07:19]} {[%emt 00:00:18]} 15. Nxe6 {[%clk 00:09:35]} {[%emt
00:00:37]} fxe6 {[%clk 00:07:20]} {[%emt 00:00:04]} 16. Bxb7 {[%clk 00:09:38]}
{[%emt 00:00:02]} Rb8 {[%clk 00:07:24]} 17. Bg2 {[%clk 00:09:40]} {[%emt
00:00:01]} Qd6 {[%clk 00:06:45]} {[%emt 00:00:46]} 18. Rab1 {[%clk 00:09:37]}
{[%emt 00:00:08]} Rfd8 {[%clk 00:06:32]} {[%emt 00:00:18]} 19. Rfd1 {[%clk
00:09:38]} {[%emt 00:00:04]} Qa6 {[%clk 00:06:33]} {[%emt 00:00:03]} 20. Bf1
{[%clk 00:09:20]} {[%emt 00:00:20]} Kf7 {[%clk 00:05:18]} {[%emt 00:01:24]} 21.
Na4 {[%clk 00:09:05]} {[%emt 00:00:20]} Qa5 {[%clk 00:04:55]} {[%emt 00:00:28]}
22. Rxd8 {[%clk 00:07:44]} {[%emt 00:01:26]} Bxd8 {[%clk 00:03:46]} {[%emt
00:01:14]} 23. Rd1 {[%clk 00:07:43]} {[%emt 00:00:05]} Be7 {[%clk 00:03:18]}
{[%emt 00:00:33]} 24. Bg2 {[%clk 00:07:26]} {[%emt 00:00:21]} Na8 {[%clk
00:01:26]} {[%emt 00:01:59]} 25. Bxa8 {[%clk 00:05:28]} {[%emt 00:02:02]} Rxa8
{[%clk 00:01:29]} {[%emt 00:00:01]} 26. Qb3 {[%clk 00:05:23]} {[%emt 00:00:11]}
Rd8 {[%clk 00:01:07]} {[%emt 00:00:27]} 27. Kg2 {[%clk 00:05:10]} {[%emt
00:00:17]} Rxd1 {[%clk 00:00:32]} {[%emt 00:00:41]} 28. Qxd1 {[%clk 00:05:14]}
Qa6 {[%clk 00:00:35]} {[%emt 00:00:01]} 29. Qb3 {[%clk 00:04:39]} {[%emt
00:00:41]} Qc6+ {[%clk 00:00:37]} {[%emt 00:00:04]} 30. Kg1 {[%clk 00:04:42]}
{[%emt 00:00:01]} Qe4 {[%clk 00:00:10]} {[%emt 00:00:24]} 31. Nc3 {[%clk
00:03:38]} {[%emt 00:01:16]} Qd3 {[%clk 00:00:10]} {[%emt 00:00:05]} 32. Qa2
{[%clk 00:03:38]} {[%emt 00:00:05]} Qc2 {[%clk 00:00:07]} {[%emt 00:00:05]} 33.
Qb1 {[%clk 00:01:39]} {[%emt 00:02:07]} Qb3 {[%clk 00:00:11]} {[%emt 00:00:02]}
34. Qa2 {[%clk 00:00:11]} {[%emt 00:01:33]} Qc2 {[%clk 00:00:14]} {[%emt
00:00:01]} 35. Qb1 {[%clk 00:00:10]} {[%emt 00:00:06]} Qb3 {[%clk 00:00:18]}
{[%emt 00:00:02]} 36. Qa2 {[%clk 00:00:08]} {[%emt 00:00:08]} Qc2 {[%clk
00:00:21]} 37. Qb1 {[%clk 00:00:09]} {[%emt 00:00:04]} Qb3 {[%clk 00:00:25]}
{[%emt 00:00:01]} 38. Qa2 {[%clk 00:00:06]} {[%emt 00:00:08]} Qc2 {[%clk
00:00:29]} 39. Qb1 {[%clk 00:00:11]} {[%emt 00:00:01]} Qb3 {[%clk 00:00:32]} 40.
Qd3 {[%clk 00:00:07]} {[%emt 00:00:09]} Qxb2 {[%clk 00:00:34]} {[%emt
00:00:03]} 41. Nb5 {[%clk 00:00:11]} {[%emt 00:00:01]} a6 {[%clk 00:00:24]}
{[%emt 00:00:16]} 42. Nc7 {[%clk 00:00:08]} {[%emt 00:00:06]} Qb7 {[%clk
00:00:08]} {[%emt 00:00:22]} 43. Qd7 {[%clk 00:00:09]} {[%emt 00:00:04]} Qb1+
{[%clk 00:00:11]} {[%emt 00:00:02]} 44. Kg2 {[%clk 00:00:13]} Qb6 {[%clk
00:00:10]} {[%emt 00:00:06]} 45. Qe8+ {[%clk 00:00:08]} {[%emt 00:00:10]} Kf6
{[%clk 00:00:13]} {[%emt 00:00:02]} 46. Qh8+ {[%clk 00:00:07]} {[%emt
00:00:05]} Kf7 {[%clk 00:00:15]} {[%emt 00:00:04]} 47. Qxh7+ {[%clk 00:00:10]}
{[%emt 00:00:01]} Kf6 {[%clk 00:00:19]} 48. Ne8+ {[%clk 00:00:11]} {[%emt
00:00:04]} Ke5 {[%clk 00:00:21]} {[%emt 00:00:02]} 49. Qxe7 {[%clk 00:00:07]}
{[%emt 00:00:11]} Qc6+ {[%clk 00:00:24]} {[%emt 00:00:01]} 50. f3 {[%clk
00:00:12]} Kd5 {[%clk 00:10:05]} {[%emt 00:00:10]} 1-0

[Event "Pervenstvo PFO 2023_Y19_Rapid"]
[Site "Samara region, Russia"]
[Date "2023.11.11"]
[Round "7.8"]
[White "Nasyrov, Danil R."]
[Black "Kurulev, Egor"]
[Result "0-1"]
[TimeControl "10:5"]
[WhiteFideId "34290257"]
[BlackFideId "34187097"]
[WhiteElo "1234"]
[BlackElo "1332"]

1. d4 {[%emt 00:06:04]} d5 2. c4 {[%emt 00:00:01]} e6 {[%emt 00:00:02]} 3. Nc3
Be7 4. Nf3 {[%emt 00:00:02]} Nf6 5. Bg5 {[%emt 00:00:02]} h6 6. Bh4 O-O {[%emt
00:00:01]} 7. e3 {[%emt 00:00:01]} b6 {[%emt 00:00:01]} 8. cxd5 {[%emt
00:00:01]} exd5 {[%emt 00:00:01]} 9. Be2 {[%emt 00:00:07]} Bb7 {[%emt
00:00:04]} 10. O-O {[%emt 00:00:03]} Nbd7 {[%emt 00:00:02]} 11. Rc1 {[%emt
00:00:01]} Rc8 {[%emt 00:00:03]} 12. Qa4 {[%emt 00:00:20]} a5 {[%emt 00:00:14]}
13. Nb5 {[%emt 00:00:23]} c5 {[%emt 00:00:16]} 14. Na7 {[%emt 00:00:35]} Ra8
{[%emt 00:00:30]} 15. Nc6 {[%emt 00:00:35]} Bxc6 {[%emt 00:00:05]} 16. Qxc6 Rc8
{[%emt 00:00:06]} 17. Qb5 {[%emt 00:00:02]} Ne4 {[%emt 00:00:10]} 18. Bxe7
{[%emt 00:00:13]} Qxe7 {[%emt 00:00:02]} 19. dxc5 {[%emt 00:00:10]} Rxc5 {[%emt
00:00:20]} 20. Rxc5 {[%emt 00:00:19]} Nexc5 {[%emt 00:00:07]} 21. Nd4 {[%emt
00:00:10]} f5 {[%emt 00:00:37]} 22. Bf3 {[%emt 00:00:05]} Qd6 {[%emt 00:00:06]}
23. Rd1 {[%emt 00:00:39]} Ne5 {[%emt 00:00:23]} 24. Qe2 {[%emt 00:00:37]} Nxf3+
{[%emt 00:01:16]} 25. Qxf3 {[%emt 00:00:08]} Qe5 {[%emt 00:00:48]} 26. Nc6
{[%emt 00:01:17]} Qxb2 {[%emt 00:00:10]} 27. Qxd5+ {[%emt 00:00:02]} Kh7 {[%emt
00:00:17]} 28. Nd4 {[%emt 00:01:00]} Ne4 {[%emt 00:00:32]} 29. Rf1 {[%emt
00:00:58]} Nd2 {[%emt 00:00:27]} 30. Ne6 {[%emt 00:00:59]} Rf6 {[%emt
00:00:48]} 31. Qd7 {[%emt 00:02:36]} Rxe6 {[%emt 00:00:38]} 32. Qxe6 {[%emt
00:00:04]} Nxf1 {[%emt 00:00:20]} 33. Qxf5+ {[%emt 00:00:02]} Kh8 {[%emt
00:00:10]} 34. Qf8+ {[%emt 00:00:02]} Kh7 {[%emt 00:00:02]} 35. Qf5+ Kh8 {[%emt
00:00:04]} 36. Kxf1 {[%emt 00:00:11]} Qa1+ {[%emt 00:00:05]} 37. Ke2 {[%emt
00:00:02]} Qxa2+ {[%emt 00:00:01]} 38. Kf3 {[%emt 00:00:01]} Qb3 {[%emt
00:00:18]} 39. g4 {[%emt 00:00:05]} Qd1+ {[%emt 00:00:08]} 40. Kg2 {[%emt
00:00:07]} Qd6 {[%emt 00:00:28]} 41. h4 {[%emt 00:00:29]} Qc6+ {[%emt
00:00:13]} 42. e4 {[%emt 00:00:10]} a4 {[%emt 00:00:02]} 43. g5 {[%emt
00:00:09]} hxg5 {[%emt 00:01:48]} 44. hxg5 {[%emt 00:00:02]} Kg8 {[%emt
00:00:04]} 45. g6 {[%emt 00:00:10]} Qf6 {[%emt 00:00:06]} 46. Qc8+ {[%emt
00:00:05]} Qf8 {[%emt 00:00:03]} 47. Qc4+ {[%emt 00:00:03]} Kh8 {[%emt
00:00:03]} 48. e5 {[%emt 00:00:31]} Qd8 {[%emt 00:00:20]} 49. Qf4 {[%emt
00:00:27]} Qd5+ {[%emt 00:00:38]} 50. f3 Kg8 {[%emt 00:00:09]} 51. e6 {[%emt
00:00:09]} Qd8 {[%emt 00:00:42]} 52. Qf7+ {[%emt 00:00:08]} Kh8 53. Qf4 {[%emt
00:00:02]} Kg8 {[%emt 00:00:07]} 54. Qf7+ {[%emt 00:00:04]} Kh8 {[%emt
00:00:02]} 55. Qf4 Kg8 56. Qxa4 {[%emt 00:00:02]} Qd2+ {[%emt 00:00:05]} 57.
Kg3 {[%emt 00:00:02]} Qe1+ {[%emt 00:00:09]} 58. Kg4 {[%emt 00:00:08]} Qxe6+
{[%emt 00:00:03]} 59. Kf4 {[%emt 00:00:11]} Qf6+ {[%emt 00:00:06]} 60. Ke3
{[%emt 00:00:03]} Qxg6 {[%emt 00:00:03]} 61. Qa8+ {[%emt 00:00:12]} Kh7 {[%emt
00:00:02]} 62. Qb7 {[%emt 00:00:05]} Qe6+ {[%emt 00:00:05]} 63. Kf2 {[%emt
00:00:04]} Kg6 {[%emt 00:00:04]} 64. Kg3 {[%emt 00:00:04]} Kf6 {[%emt
00:00:06]} 65. Kf2 {[%emt 00:00:06]} Qd6 {[%emt 00:00:10]} 66. Qe4 {[%emt
00:00:06]} Qc5+ {[%emt 00:00:03]} 67. Kg2 {[%emt 00:00:05]} Qg5+ {[%emt
00:00:07]} 68. Kf2 b5 {[%emt 00:00:08]} 69. Qc6+ {[%emt 00:00:08]} Kf7 {[%emt
00:00:01]} 70. Qd7+ {[%emt 00:00:02]} Kg6 {[%emt 00:00:03]} 71. Qe6+ {[%emt
00:00:05]} Kh7 {[%emt 00:00:14]} 72. Qh3+ {[%emt 00:00:05]} Kg6 {[%emt
00:00:08]} 73. Qe6+ {[%emt 00:00:05]} Kh5 {[%emt 00:00:05]} 74. Qg8 {[%emt
00:00:09]} Qd2+ {[%emt 00:00:05]} 75. Kg3 {[%emt 00:00:02]} Qe1+ {[%emt
00:00:04]} 76. Kf4 {[%emt 00:00:02]} Qh4+ {[%emt 00:00:03]} 77. Ke3 {[%emt
00:00:02]} Qe7+ {[%emt 00:00:01]} 78. Kf2 {[%emt 00:00:02]} b4 {[%emt
00:00:02]} 79. f4 {[%emt 00:00:10]} Qc5+ {[%emt 00:00:09]} 80. Kf3 {[%emt
00:00:03]} Qc3+ {[%emt 00:00:01]} 81. Ke4 {[%emt 00:00:05]} Qc2+ {[%emt
00:00:06]} 82. Ke5 {[%emt 00:00:06]} Qe2+ {[%emt 00:00:03]} 83. Kf5 {[%emt
00:00:03]} Qb5+ {[%emt 00:00:04]} 84. Ke4 {[%emt 00:00:02]} Qc6+ {[%emt
00:00:03]} 85. Kf5 {[%emt 00:00:10]} g6+ {[%emt 00:00:12]} 86. Ke5 {[%emt
00:00:08]} Qc7+ {[%emt 00:00:04]} 87. Ke4 {[%emt 00:00:07]} Qc6+ {[%emt
00:00:02]} 88. Ke3 {[%emt 00:00:05]} Kg4 {[%emt 00:00:03]} 89. Qh8 {[%emt
00:00:08]} Qc3+ {[%emt 00:00:05]} 90. Qxc3 {[%emt 00:00:01]} bxc3 {[%emt
00:00:02]} 91. Kd3 Kxf4 {[%emt 00:00:01]} 92. Kxc3 {[%emt 00:00:01]} 0-1